bitfinex-derivatives/quotes_SOLF0:USTF0_20240907
["timestamp","ask_amount","ask_price","bid_price","bid_amount"]
[1725689414423,4.03319163,126.87,126.8,9.69]
[1725689414610,9.69,126.87,126.81,3.90964333]
[1725689414812,13.63394536,126.87,126.81,9.69]
[1725689415013,13.63394536,126.87,126.81,13.72384035]
[1725689415821,13.63394536,126.87,126.84,3.9427]
[1725689416023,9.69,126.87,126.81,13.72384035]
[1725689416914,6.67568202,126.88,126.81,4.03384035]
[1725689417117,6.67568202,126.88,126.82,9.69]
[1725689418314,2.8307,126.88,126.85,3.9425]
[1725689418915,6.6929404,126.88,126.85,3.9425]
[1725689419622,16.3829404,126.88,126.85,3.9425]
[1725689421325,12.5207,126.88,126.85,3.9425]
[1725689421529,1.3898,126.94,126.84,9.69]
[1725689421530,7.91638174,126.92,126.84,9.69]
[1725689421725,17.60638174,126.92,126.84,9.69]
[1725689422526,2.7898,126.93,126.86,9.69]
[1725689422728,2.7898,126.93,126.87,9.69]
[1725689422930,2.7898,126.93,126.87,13.63315681]
[1725689423430,3.88007261,126.92,126.87,9.69]
[1725689423630,3.88007261,126.92,126.87,13.68677838]
[1725689424129,3.88007261,126.92,126.87,9.69]
[1725689424337,12.4798,126.93,126.87,9.69]
[1725689424634,3.99867157,126.92,126.89,3.9411]
[1725689424823,3.99867157,126.92,126.87,13.55663067]
[1725689425228,12.4798,126.93,126.87,13.55663067]
[1725689425938,16.49857332,126.93,126.91,3.9407]
[1725689427235,12.4798,126.93,126.91,3.9407]
[1725689428326,16.4772946,126.93,126.91,3.9407]
[1725689429225,2.7898,126.93,126.92,3.9404]
[1725689429432,9.69,126.95,126.92,3.9404]
[1725689430741,13.6295,126.95,126.91,3.9406]
[1725689433842,9.69,126.93,126.91,3.9406]
[1725689434045,3.86002001,126.92,126.91,3.9406]
[1725689434342,9.69,126.93,126.91,3.9406]
[1725689434937,13.71318606,126.93,126.91,3.9406]
[1725689435652,9.69,126.93,126.91,3.9406]
[1725689435953,2.6588,126.94,126.91,3.9406]
[1725689436355,2.6588,126.94,126.92,3.9404]
[1725689436956,2.6588,126.94,126.91,3.9406]
[1725689437254,3.96958562,126.93,126.91,3.9406]
[1725689437445,2.6588,126.94,126.91,3.9406]
[1725689437647,3.98259161,126.93,126.91,3.9406]
[1725689438544,3.98259161,126.93,126.92,3.9404]
[1725689438747,3.98259161,126.93,126.87,13.55663067]
[1725689438949,2.6588,126.94,126.87,13.55663067]
[1725689439453,3.91677342,126.93,126.87,13.55663067]
[1725689439653,3.91677342,126.93,126.91,3.9406]
[1725689439851,2.6588,126.94,126.91,3.9406]
[1725689440460,2.6588,126.94,126.87,13.55663067]
[1725689441051,2.6588,126.94,126.91,3.9405]
[1725689442958,2.6588,126.94,126.89,9.69]
[1725689443149,1.3147,126.94,126.89,9.69]
[1725689443657,1.3147,126.94,126.89,13.60694429]
[1725689444055,1.3147,126.94,126.92,3.9402]
[1725689447367,1.3147,126.94,126.89,3.84561965]
[1725689448168,1.3147,126.94,126.92,3.9402]
[1725689449966,1.3147,126.94,126.89,3.84561965]
[1725689451362,1.3147,126.94,126.92,3.9402]
[1725689452368,1.3147,126.94,126.89,3.84561965]
[1725689453470,1.3147,126.94,126.93,3.9401]
[1725689458575,5.2871,126.98,126.94,3.9398]
[1725689458776,16.3142,126.98,126.94,3.9398]
[1725689459673,12.3755,126.98,126.92,9.69]
[1725689460065,12.3755,126.98,126.95,3.9392]
[1725689460473,12.3755,126.98,126.92,9.69]
[1725689461272,12.3755,126.98,126.92,12.51285764]
[1725689461575,12.3755,126.98,126.92,9.69]
[1725689461780,12.3755,126.98,126.95,3.9393]
[1725689462380,4.01120233,127.01,126.94,9.69]
[1725689462578,23.68,127.06,126.97,9.69]
[1725689462579,9.69,127.03,126.97,9.69]
[1725689462776,13.66416372,127.03,126.97,9.69]
[1725689462978,9.69,127.04,126.97,9.69]
[1725689463178,1.3263,127.05,126.99,9.69]
[1725689463782,5.21706067,127.05,127.02,3.9371]
[1725689464586,14.90706067,127.05,126.99,9.69]
[1725689465285,14.90706067,127.05,127.02,3.9372]
[1725689465486,14.90706067,127.05,126.99,9.69]
[1725689465978,14.90706067,127.05,127.01,3.9374]
[1725689467587,18.84356067,127.05,127.01,3.9374]
[1725689471181,3.9368,127.04,127.0,3.9379]
[1725689472785,13.6268,127.04,127.0,3.9379]
[1725689473786,14.90706067,127.05,126.99,9.69]
[1725689474486,18.84346067,127.05,127.01,3.9374]
[1725689478293,3.9368,127.04,127.0,3.9379]
[1725689478588,3.9368,127.04,126.99,9.69]
[1725689478792,14.90706067,127.05,126.99,9.69]
[1725689479589,5.21706067,127.05,126.99,9.69]
[1725689480188,5.21706067,127.05,127.02,3.9371]
[1725689481195,2.7309,127.06,127.0,9.69]
[1725689481389,2.7309,127.06,127.02,9.69]
[1725689482188,2.7309,127.06,127.04,3.9365]
[1725689482690,1.3988,127.06,127.04,3.9365]
[1725689483399,1.3988,127.06,127.03,3.9369]
[1725689483592,3.98756066,127.14,127.05,9.69]
[1725689483899,10.9951,127.12,127.08,3.9353]
[1725689484091,3.91796634,127.11,127.08,3.9353]
[1725689485500,10.9951,127.12,127.09,3.9351]
[1725689485698,4.01364173,127.11,127.09,3.9351]
[1725689486702,10.9951,127.12,127.09,3.9351]
[1725689487299,14.84405159,127.12,127.09,3.9351]
[1725689487513,135.47465227,127.17,127.08,9.69]
[1725689487709,9.69,127.15,127.08,9.69]
[1725689488100,2.7089,127.16,127.08,9.69]
[1725689488300,9.69,127.14,127.07,9.69]
[1725689489199,9.69,127.13,127.06,9.69]
[1725689489399,9.69,127.13,127.09,3.9351]
[1725689489604,9.69,127.13,127.01,0.4743]
[1725689489605,9.69,127.1,127.01,0.4743]
[1725689489801,1.3443,127.09,127.03,9.69]
[1725689490109,1.3443,127.09,127.06,3.9359]
[1725689492610,1.3443,127.09,127.04,9.69]
[1725689492811,1.3443,127.09,127.02,4.02591522]
[1725689493108,1.3443,127.09,127.03,9.69]
[1725689493307,5.2795,127.09,127.03,9.69]
[1725689493510,14.9695,127.09,127.04,3.9365]
[1725689493903,3.9356,127.08,127.04,3.9365]
[1725689500518,9.69,127.05,126.99,99.52356614]
[1725689501215,9.69,127.05,127.02,3.9373]
[1725689501511,1.3443,127.09,126.99,109.21356614]
[1725689501808,13.6256,127.08,127.03,3.9369]
[1725689502209,13.6256,127.08,127.01,9.69]
[1725689502415,13.6256,127.08,127.03,3.937]
[1725689502616,13.6256,127.08,127.01,9.69]
[1725689503014,13.6256,127.08,127.03,3.9368]
[1725689503215,13.6256,127.08,127.01,9.69]
[1725689504309,13.6256,127.08,127.03,3.9368]
[1725689507318,13.6256,127.08,127.04,3.9366]
[1725689508007,3.9356,127.08,127.04,3.9366]
[1725689508210,9.69,127.07,127.04,3.9366]
[1725689508617,3.9356,127.08,127.04,3.9366]
[1725689508815,13.6256,127.08,127.04,3.9366]
[1725689509213,13.6256,127.08,127.05,3.9363]
[1725689510515,13.6256,127.08,127.04,3.9365]
[1725689511420,3.9358,127.07,127.04,3.9365]
[1725689512014,13.6258,127.07,127.04,3.9365]
[1725689512220,9.69,127.07,127.04,3.9365]
[1725689515018,5.2796,127.09,127.05,3.9363]
[1725689515215,9.69,127.08,127.05,3.9363]
[1725689517527,13.6255,127.08,127.05,3.9363]
[1725689519124,9.69,127.08,127.06,3.936]
[1725689521234,5.2796,127.09,127.03,9.69]
[1725689521437,1.3443,127.09,127.03,9.69]
[1725689521931,1.3443,127.09,127.07,3.9356]
[1725689522140,5.2795,127.09,127.0,0.4734]
[1725689522332,9.69,127.08,127.02,9.69]
[1725689523038,13.6255,127.08,127.02,13.53356159]
[1725689524836,5.35832786,127.09,127.03,9.69]
[1725689526037,5.35832786,127.09,127.03,13.53307675]
[1725689526434,5.35832786,127.09,127.04,9.69]
[1725689527036,5.35832786,127.09,127.06,3.9358]
[1725689527640,5.35832786,127.09,127.03,3.9368]
[1725689527641,9.69,127.07,127.03,3.9368]
[1725689528041,9.69,127.07,127.04,3.9366]
[1725689528242,15.04832786,127.09,127.04,3.9366]
[1725689528544,15.04832786,127.09,127.03,9.69]
[1725689528742,1.3443,127.09,127.04,9.69]
[1725689528947,9.69,127.12,127.06,9.69]
[1725689529441,3.83923104,127.11,127.07,3.9356]
[1725689530045,7.77383104,127.11,127.07,3.9356]
[1725689530546,7.77383104,127.11,127.08,3.9355]
[1725689532247,9.69,127.09,126.97,9.69]
[1725689532447,1.3713,127.1,126.88,3.63308413]
[1725689532448,9.69,127.04,126.98,3.95730886]
[1725689532659,9.69,127.02,126.97,3.95730886]
[1725689532852,9.69,127.01,126.98,2.81288111]
[1725689533352,13.6282,127.0,126.98,2.81288111]
[1725689533557,13.6282,127.0,126.99,2.81288111]
[1725689533951,9.69,127.0,126.96,3.9389]
[1725689534358,13.6277,127.01,126.95,2.81288111]
[1725689534559,12.4571,127.03,126.96,9.69]
[1725689534951,13.6275,127.02,126.96,3.9627986]
[1725689535157,9.69,127.02,126.96,2.8169924]
[1725689535350,9.69,127.02,126.95,9.69]
[1725689535857,9.69,127.02,126.96,2.81743756]
[1725689536161,3.9378,127.01,126.96,6.75653756]
[1725689537966,3.9378,127.01,126.97,3.9388]
[1725689543566,24.19,127.02,126.96,2.81743756]
[1725689543864,3.9382,127.0,126.96,2.81743756]
[1725689544066,24.19,127.02,126.96,2.81743756]
[1725689544270,24.19,127.0,126.96,2.81743756]
[1725689544563,3.9387,126.98,126.96,2.81743756]
[1725689544764,24.19,127.0,126.96,2.81743756]
[1725689545170,3.9384,126.99,126.96,2.81743756]
[1725689545763,24.19,127.0,126.96,2.81743756]
[1725689545764,3.9386,126.98,126.96,2.81743756]
[1725689546268,3.9386,126.98,126.94,3.9397]
[1725689547169,7.78141977,126.97,126.93,3.9399]
[1725689550970,9.17421977,126.97,126.93,3.9399]
[1725689551377,24.19,127.01,126.91,24.19]
[1725689551862,3.9383,126.99,126.94,3.9398]
[1725689552580,4.0002484,126.98,126.94,3.9398]
[1725689553079,4.0002484,126.98,126.95,3.9394]
[1725689553379,3.9383,126.99,126.95,3.9394]
[1725689553769,7.84674717,126.99,126.95,3.9394]
[1725689555673,3.9383,126.99,126.95,3.9394]
[1725689556181,3.91159619,126.98,126.92,6.75102877]
[1725689556474,3.91159619,126.98,126.93,24.19]
[1725689556678,1.3928,127.02,126.93,24.19]
[1725689557271,5.33245653,127.02,126.93,24.19]
[1725689557572,5.33245653,127.02,126.97,3.9387]
[1725689557573,3.9377,127.01,126.97,3.9387]
[1725689557773,3.92232204,127.0,126.97,3.9387]
[1725689557979,13.60232204,127.0,126.97,3.9387]
[1725689559581,13.60232204,127.0,126.93,9.68]
[1725689559582,17.54032204,127.0,126.96,3.939]
[1725689559771,9.68,126.99,126.96,3.939]
[1725689561580,13.6183,126.99,126.95,3.9392]
[1725689561774,9.68,126.99,126.92,12.50157012]
[1725689564175,9.68,126.99,126.95,3.9392]
[1725689565589,9.68,126.96,126.92,2.82157012]
[1725689565787,1.4148,126.98,126.79,38.47311009]
[1725689565788,9.68,126.93,126.81,2.82557207]
[1725689565981,9.68,126.86,126.81,2.82557207]
[1725689566297,3.85976333,126.93,126.81,2.82557207]
[1725689566484,0.57435215,126.92,126.82,2.82557207]
[1725689566686,3.94092197,126.92,126.82,12.50557207]
[1725689566884,1.3552,126.95,126.84,9.68]
[1725689567090,9.68,126.92,126.84,9.68]
[1725689567582,3.9401,126.94,126.84,9.68]
[1725689567784,1.3552,126.95,126.88,9.68]
[1725689567985,1.3552,126.95,126.8,3.94328582]
[1725689567986,1.3552,126.95,126.79,1.1674]
[1725689568385,24.21,126.92,126.82,24.21]
[1725689568583,3.96168779,126.91,126.86,3.9423]
[1725689568887,24.21,126.92,126.82,28.22018377]
[1725689569187,4.02280061,126.92,126.82,28.22018377]
[1725689569388,24.21,126.91,126.82,28.22018377]
[1725689569584,3.99086423,126.9,126.82,28.22018377]
[1725689569782,24.21,126.93,126.82,28.22018377]
[1725689569985,28.11491201,126.93,126.84,24.21]
[1725689570385,32.05521201,126.93,126.84,28.1526]
[1725689570784,32.05521201,126.93,126.84,28.08069909]
[1725689571088,1.2972,126.92,126.84,28.08069909]
[1725689571492,1.2972,126.92,126.88,3.9416]
[1725689572295,1.2972,126.92,126.86,3.942]
[1725689572586,1.2972,126.92,126.85,24.21]
[1725689572788,3.86872786,126.93,126.85,26.789]
[1725689573292,6.6381,126.94,126.87,3.942]
[1725689573990,10.48138446,126.94,126.87,3.942]
[1725689574390,3.9405,126.92,126.85,30.7313]
[1725689574696,6.54158446,126.94,126.85,26.789]
[1725689574994,24.21,126.93,126.85,1.4153]
[1725689575293,24.21,126.93,126.84,3.87069909]
[1725689575495,24.21,126.93,126.82,24.21]
[1725689575995,28.1504,126.93,126.86,3.9423]
[1725689577695,3.9405,126.92,126.86,3.9423]
[1725689578398,3.9408,126.91,126.82,28.12541995]
[1725689579198,3.9404,126.92,126.82,28.12541995]
[1725689579405,3.9404,126.92,126.84,24.21]
[1725689580399,3.9404,126.92,126.87,3.9419]
[1725689581509,3.9408,126.91,126.83,1.329]
[1725689582116,24.21,126.93,126.83,1.329]
[1725689582117,3.9405,126.92,126.83,1.329]
[1725689582523,3.9405,126.92,126.86,3.9421]
[1725689582814,6.54158446,126.94,126.83,1.329]
[1725689582815,6.54158446,126.94,126.85,24.21]
[1725689583015,5.17098446,126.94,126.87,24.21]
[1725689583717,5.17098446,126.94,126.9,3.9408]
[1725689583912,1.3277,126.94,126.9,3.9408]
[1725689584112,3.94900843,126.96,126.9,3.86426576]
[1725689584416,3.94900843,126.96,126.89,24.21]
[1725689584625,3.94900843,126.96,126.92,3.9401]
[1725689585208,3.94900843,126.96,126.93,3.9401]
[1725689585516,3.94900843,126.96,126.9,3.91708212]
[1725689586909,3.94900843,126.96,126.92,3.9402]
[1725689587912,5.2834,126.97,126.92,3.9402]
[1725689589219,1.3445,126.97,126.93,3.9401]
[1725689589415,1.4144,126.98,126.93,3.9401]
[1725689589625,5.3531,126.98,126.94,3.9398]
[1725689590120,11.0944,126.98,126.91,9.68]
[1725689590323,11.0944,126.98,126.95,3.9393]
[1725689590820,9.68,127.01,126.94,9.68]
[1725689591308,9.68,127.01,126.97,3.9388]
[1725689592013,6.7134,127.02,126.97,3.9388]
[1725689592320,3.9377,127.01,126.97,3.9388]
[1725689594215,3.9377,127.01,126.98,3.9385]
[1725689594611,3.9377,127.01,126.93,24.19]
[1725689594917,3.9379,127.0,126.96,3.939]
[1725689595917,3.9379,127.0,126.97,3.9389]
[1725689598027,3.9379,127.0,126.96,3.939]
[1725689604726,3.9378,127.01,126.93,24.19]
[1725689605127,3.9378,127.01,126.97,3.9386]
[1725689611333,3.938,127.0,126.97,3.9386]
[1725689611532,3.86715948,126.99,126.97,3.9386]
[1725689614626,3.9377,127.01,126.97,3.9386]
[1725689614933,13.6177,127.01,126.97,3.9386]
[1725689615230,17.59683745,127.01,126.97,3.9386]
[1725689616032,13.6187,126.98,126.92,3.85927938]
[1725689616337,9.68,126.98,126.9,15.02766265]
[1725689616537,13.6187,126.98,126.94,3.9396]
[1725689617632,1.3434,126.97,126.94,3.9396]
[1725689620142,1.3434,126.97,126.95,3.9394]
[1725689620540,3.97913745,127.01,126.96,9.68]
[1725689620834,11.0949,127.03,126.98,9.68]
[1725689621039,4.0234942,127.04,126.98,9.68]
[1725689621236,1.3294,127.05,126.99,9.68]
[1725689621439,1.3294,127.05,127.01,9.68]
[1725689621636,5.36596772,127.05,127.01,9.68]
[1725689621835,1.3294,127.05,127.02,3.9373]
[1725689622433,1.3294,127.05,127.01,9.68]
[1725689622638,2.6205,127.08,127.02,9.68]
[1725689623040,2.6205,127.08,127.04,3.9365]
[1725689623536,2.6205,127.08,127.05,3.9363]
[1725689623844,1.3417,127.08,127.02,9.68]
[1725689624038,1.3417,127.08,127.02,24.19]
[1725689625337,1.3417,127.08,127.06,3.936]
[1725689626342,1.3417,127.08,127.05,3.9363]
[1725689629441,1.3417,127.08,127.02,24.19]
[1725689632447,5.2772,127.08,127.0,24.19]
[1725689633147,5.2772,127.08,127.04,3.9365]
[1725689633745,1.3417,127.08,127.05,3.9364]
[1725689637548,1.3294,127.11,127.06,3.936]
[1725689637749,5.2641,127.11,127.03,24.19]
[1725689639649,5.2641,127.11,127.07,3.9356]
[1725689640855,3.935,127.1,127.06,3.9358]
[1725689641052,24.19,127.1,127.06,3.9358]
[1725689641561,3.9352,127.09,127.06,3.9358]
[1725689642253,24.19,127.1,127.07,3.9356]
[1725689642254,3.9349,127.1,127.07,3.9356]
[1725689642755,3.96805088,127.09,127.07,3.9356]
[1725689643146,5.264,127.11,127.08,3.9352]
[1725689643551,1.3294,127.11,127.03,4.02513664]
[1725689643757,7.83592275,127.1,127.07,3.9356]
[1725689643958,3.90112275,127.1,127.07,3.9356]
[1725689644157,1.3294,127.11,127.07,3.9356]
[1725689644754,3.9349,127.1,127.07,3.9356]
[1725689650357,9.68,127.08,127.02,138.53021416]
[1725689650556,9.68,127.06,127.02,138.53021416]
[1725689651052,9.68,127.06,127.03,3.937]
[1725689651254,9.68,127.06,127.02,138.53021416]
[1725689651560,13.6157,127.08,127.02,148.21021416]
[1725689652154,13.6157,127.08,127.04,3.9364]
[1725689656764,13.6157,127.08,127.02,148.21021416]
[1725689656765,9.68,127.08,127.02,148.21021416]
[1725689657262,9.68,127.08,126.99,2.4853]
[1725689657463,9.68,127.06,127.0,9.68]
[1725689658060,13.6163,127.06,127.0,9.68]
[1725689658665,13.6163,127.06,127.02,3.9371]
[1725689659567,13.6163,127.06,127.03,3.937]
[1725689659762,3.9363,127.06,127.03,3.937]
[1725689659963,3.9359,127.07,127.03,3.937]
[1725689662367,3.9359,127.07,127.01,9.68]
[1725689663765,3.9359,127.07,127.03,3.9368]
[1725689664768,3.9359,127.07,127.01,9.68]
[1725689665866,3.9359,127.07,127.03,3.9367]
[1725689666768,3.9359,127.07,127.04,3.9367]
[1725689668165,1.2933,127.09,126.99,2.4853]
[1725689668166,9.68,127.05,127.0,9.68]
[1725689668371,3.91748937,127.04,127.0,9.68]
[1725689668765,3.91748937,127.04,127.02,3.9371]
[1725689670867,3.91748937,127.04,127.01,3.9375]
[1725689671071,7.85418937,127.04,127.01,3.9375]
[1725689671367,13.57679211,127.11,127.03,9.68]
[1725689671575,1.4037,127.11,127.03,9.68]
[1725689671776,11.0837,127.11,127.03,9.68]
[1725689672378,18.91611663,127.11,127.07,3.9358]
[1725689673471,3.9349,127.1,127.03,9.68]
[1725689673773,9.68,127.08,127.02,141.44784331]
[1725689674168,9.68,127.08,127.04,3.9365]
[1725689674574,13.6154,127.09,127.05,3.9364]
[1725689676775,9.68,127.09,127.06,3.9359]
[1725689679475,3.935,127.1,127.02,141.44784331]
[1725689679476,18.91611663,127.11,127.05,9.68]
[1725689680880,5.30141663,127.11,127.08,3.9352]
[1725689682276,14.98141663,127.11,127.08,3.9352]
[1725689682882,18.91601663,127.11,127.08,3.9352]
[1725689683183,14.98141663,127.11,127.08,3.9352]
[1725689683580,3.89771663,127.11,127.09,3.9351]
[1725689683884,9.68,127.13,127.06,9.68]
[1725689684085,13.57443427,127.13,127.06,9.68]
[1725689684584,17.50853427,127.13,127.09,3.935]
[1725689687181,3.9343,127.12,127.09,3.935]
[1725689688986,17.50853427,127.13,127.09,3.935]
[1725689690495,3.9343,127.12,127.09,3.935]
[1725689691097,3.935,127.1,127.04,1.3219]
[1725689691299,13.615,127.1,127.04,1.3219]
[1725689691594,13.615,127.1,127.06,3.9359]
[1725689693197,13.615,127.1,127.07,3.9358]
[1725689693896,3.935,127.1,127.07,3.9358]
[1725689694203,14.9274,127.11,127.08,3.9355]
[1725689694399,5.2474,127.11,127.08,3.9355]
[1725689698707,3.9346,127.11,127.08,3.9355]
[1725689699094,3.9343,127.12,127.07,9.68]
[1725689700308,3.9343,127.12,127.09,3.935]
[1725689701207,7.82853427,127.13,127.07,9.68]
[1725689701407,3.9341,127.13,127.07,9.68]
[1725689701709,3.93112845,127.12,127.07,9.68]
[1725689702110,7.86532845,127.12,127.09,3.9349]
[1725689702311,9.68,127.11,127.04,14.87712754]
[1725689703111,13.6146,127.11,127.08,3.9353]
[1725689703512,6.59955702,127.15,127.06,9.68]
[1725689703709,9.68,127.13,127.06,9.68]
[1725689703915,13.6141,127.13,127.06,9.68]
[1725689704115,9.68,127.13,127.06,9.68]
[1725689704418,3.9344,127.12,127.09,3.935]
[1725689706116,9.68,127.11,127.06,9.68]
[1725689706323,9.68,127.11,127.04,11.0019]
[1725689707021,9.68,127.11,127.06,3.9361]
[1725689707022,3.935,127.1,127.06,3.9361]
[1725689707313,9.68,127.08,127.02,131.76784331]
[1725689707519,9.68,127.07,127.02,131.76784331]
[1725689707920,17.55577198,127.07,127.04,3.9365]
[1725689709031,3.9364,127.06,127.02,135.70504331]
[1725689709320,13.61987198,127.07,127.02,131.76784331]
[1725689710322,3.9362,127.06,127.03,3.9368]
[1725689712119,13.61987198,127.07,126.84,229.0]
[1725689712120,9.68,127.04,126.84,229.0]
[1725689712421,9.68,127.0,126.93,9.68]
[1725689712621,9.68,126.98,126.92,3.8536168]
[1725689713123,9.68,126.98,126.95,3.9394]
[1725689713329,9.68,126.98,126.91,12.1461]
[1725689713720,13.71080363,127.0,126.96,3.9392]
[1725689714426,3.9383,126.99,126.95,3.9394]
[1725689715528,3.9383,126.99,126.96,3.9392]
[1725689717323,17.64880363,127.0,126.96,3.9392]
[1725689718428,13.6177,127.01,126.95,9.68]
[1725689718631,3.91207605,127.0,126.95,9.68]
[1725689718835,3.91207605,127.0,126.97,3.9387]
[1725689719025,3.9377,127.01,126.97,3.9387]
[1725689719329,7.91272286,127.0,126.97,3.9387]
[1725689720424,1.2989,127.03,126.99,9.68]
[1725689720728,9.68,127.07,127.0,9.68]
[1725689720931,9.68,127.07,126.91,2.4675]
[1725689720932,13.6163,127.06,127.01,3.9376]
[1725689721233,13.69215334,127.06,126.99,9.68]
[1725689721533,4.01215334,127.06,126.99,9.68]
[1725689721723,9.68,127.07,126.99,9.68]
[1725689722326,3.88572856,127.06,126.99,9.68]
[1725689722528,7.82182856,127.06,127.02,3.9371]
[1725689723331,3.88572856,127.06,126.99,9.68]
[1725689723533,9.68,127.07,126.99,9.68]
[1725689724032,3.9361,127.06,127.02,3.9372]
[1725689724335,4.02316843,127.05,127.02,3.9372]
[1725689726335,4.02316843,127.05,127.03,3.937]
[1725689727340,3.9361,127.06,127.03,3.937]
[1725689727634,24.21,127.07,126.98,25.5866]
[1725689727635,3.9358,127.07,126.99,24.21]
[1725689727826,3.9358,127.07,126.99,25.3736]
[1725689728021,7.92549958,127.07,126.99,25.3736]
[1725689729028,3.9361,127.06,126.99,25.3736]
[1725689729230,3.98969958,127.07,127.03,3.9368]
[1725689729521,3.9359,127.07,127.03,3.9368]
[1725689729724,3.87557811,127.06,127.03,3.9368]
[1725689733941,3.9359,127.07,126.99,25.3736]
[1725689734529,3.9361,127.06,127.03,3.9368]
[1725689734732,3.99253062,127.07,127.03,3.9368]
[1725689734937,4.1024,127.08,127.03,3.9368]
[1725689735133,3.9359,127.07,127.03,3.9368]
[1725689735435,3.88511132,127.06,127.03,3.9368]
[1725689735840,3.88511132,127.06,127.04,3.9367]
[1725689738250,1.3567,127.08,127.02,24.21]
[1725689738542,24.21,127.12,127.02,24.21]
[1725689738734,28.17032265,127.12,127.02,24.21]
[1725689739348,3.9348,127.1,127.02,24.21]
[1725689740040,3.89023541,127.09,127.07,3.9358]
[1725689741641,3.9348,127.1,127.07,3.9358]
[1725689741945,3.9347,127.11,127.08,3.9354]
[1725689742143,3.9006424,127.1,127.08,3.9354]
[1725689743036,3.9347,127.11,127.08,3.9354]
[1725689743539,7.88692049,127.11,127.07,3.9356]
[1725689743743,3.9347,127.11,127.07,3.9356]
[1725689744340,7.78504485,127.11,127.07,3.9356]
[1725689745139,3.9349,127.1,127.07,3.9356]
[1725689745946,13.6149,127.1,127.07,3.9356]
[1725689748846,9.68,127.1,127.04,9.68]
[1725689749445,13.6149,127.1,127.07,3.9356]
[1725689750450,16.60317443,127.09,127.07,3.9356]
[1725689751245,16.60317443,127.08,127.07,3.9356]
[1725689751647,21.32719134,127.08,127.07,3.9356]
[1725689758256,17.46504485,127.11,127.08,3.9353]
[1725689760659,3.9349,127.1,127.07,3.9356]
[1725689762862,17.46504485,127.11,127.08,3.9354]
[1725689769161,4.1057,127.14,127.1,3.9348]
[1725689769353,17.68533848,127.14,127.07,9.68]
[1725689769966,3.9343,127.12,127.09,3.935]
[1725689772366,13.6143,127.12,127.09,3.935]
[1725689774656,3.9346,127.11,127.09,3.935]
[1725689774862,3.9346,127.11,127.08,3.9353]
[1725689776855,3.9346,127.11,127.09,3.9351]
[1725689777467,13.6144,127.12,127.09,3.9351]
[1725689777663,13.6144,127.12,127.1,3.9348]
[1725689777864,8.00533848,127.14,127.08,9.68]
[1725689778566,3.9341,127.13,127.1,3.9347]
[1725689782762,13.6141,127.13,127.1,3.9347]
[1725689783276,3.9341,127.13,127.1,3.9347]
[1725689785577,1.3627,127.14,127.1,9.68]
[1725689786072,3.90090594,127.15,127.13,3.9339]
[1725689786466,1.389,127.17,127.13,3.9339]
[1725689786673,5.3219,127.17,127.11,9.68]
[1725689787170,3.9321,127.19,127.13,9.68]
[1725689787379,1.2983,127.2,127.1,2.555]
[1725689787673,1.2983,127.2,127.18,3.9324]
[1725689788474,1.2983,127.2,127.17,3.9325]
[1725689789174,1.2983,127.2,127.18,3.9323]
[1725689789673,1.2983,127.2,127.17,3.9325]
[1725689790774,5.2301,127.2,127.17,3.9325]
[1725689793768,1.2983,127.2,127.17,3.9325]
[1725689795182,5.2301,127.2,127.17,3.9325]
[1725689795984,5.2301,127.2,127.16,3.9328]